{"text_format":"3","workbook":"xlsx","n_sheets":4,"sheets":["Ataskaitų sritis","Biudžetas","Sąranka","diagramos duomenys"],"not_rendered":{"charts":2,"images":1,"external_links":1,"defined_names":42},"read":"whole","date_system":"1900"}

{"sheet":"Ataskaitų sritis","index":0,"n_rows":13,"n_cols":14,"rows_kept":13,"merged":[[2,0,4,2],[6,0,8,2],[10,0,12,2]]}
[{"$nulls":13},{"$f":"BiudžetoPavadinimas&\" INTERAKTYVUSIS BIUDŽETAS\"","v":"2012 M. JOHNSONŲ ŠEIMA INTERAKTYVUSIS BIUDŽETAS"}]
[]
[{"$f":"'diagramos duomenys'!C38","v":{"v":4000,"d":"4,000 Lt"}}]
[]
[{"$nulls":3},"pajamos"]
[]
[{"$f":"'diagramos duomenys'!C39","v":{"v":5933,"d":"5,933 Lt"}}]
[]
[{"$nulls":3},"išlaidos"]
[]
[{"$f":"'diagramos duomenys'!D40& 'diagramos duomenys'!C40&\" Lt\"","v":"-1933 Lt"}]
[]
[{"$nulls":3},"grynųjų pinigų srautas"]

{"sheet":"Biudžetas","index":1,"n_rows":131,"n_cols":16,"rows_kept":131,"merged":[[18,1,18,13],[27,1,27,13],[36,1,36,13],[45,1,45,13],[54,1,54,13],[61,1,61,13],[68,1,68,13],[75,1,75,13],[82,1,82,13],[89,1,89,13],[96,1,96,13],[103,1,103,13],[110,1,110,13],[117,1,117,13],[124,1,124,13]]}
[null,null,"sau","vas","kov","bal","geg","bir","liep","rugp","rugs","spal","lap","gruod","metai","vid"]
[]
[]
[]
[null,"Pradinis balansas",1000]
[null,"Bendros pajamos",{"$f":"SUM(tblPajamos[sau])","v":4222},{"$f":"SUM(tblPajamos[vas])","v":9033},{"$f":"SUM(tblPajamos[kov])","v":4000},{"$f":"SUM(tblPajamos[bal])","v":4045},{"$f":"SUM(tblPajamos[geg])","v":9000},{"$f":"SUM(tblPajamos[bir])","v":1525},{"$f":"SUM(tblPajamos[liep])","v":1500},{"$f":"SUM(tblPajamos[rugp])","v":6500},{"$f":"SUM(tblPajamos[rugs])","v":4000},{"$f":"SUM(tblPajamos[spal])","v":4000},{"$f":"SUM(tblPajamos[lap])","v":9000},{"$f":"SUM(tblPajamos[gruod])","v":4000},{"$f":"SUM(tblPajamos[metai])","v":60825},{"$f":"O6/12","v":{"v":5068.75,"d":"5069"}}]
[null,"Visos išlaidos",{"$f":"SUM(tblIšlaidųKategorija_01[sau],tblIšlaidųKategorija_02[sau],tblIšlaidųKategorija_03[sau],tblIšlaidųKategorija_04[sau],tblIšlaidųKategorija_05[sau],tblIšlaidųKategorija_06[sau],tblIšlaidųKategorija_07[sau],tblIšlaidųKategorija_08[sau],tblIšlaidųKategorija_09[sau],,tblIšlaidųKategorija_10[sau],tblIšlaidųKategorija_11[sau],tblIšlaidųKategorija_12[sau],tblIšlaidųKategorija_13[sau],tblIšlaidųKategorija_14[sau],tblIšlaidųKategorija_15[sau])","v":7936},{"$f":"SUM(tblIšlaidųKategorija_01[vas],tblIšlaidųKategorija_02[vas],tblIšlaidųKategorija_03[vas],tblIšlaidųKategorija_04[vas],tblIšlaidųKategorija_05[vas],tblIšlaidųKategorija_06[vas],tblIšlaidųKategorija_07[vas],tblIšlaidųKategorija_08[vas],tblIšlaidųKategorija_09[vas],,tblIšlaidųKategorija_10[vas],tblIšlaidųKategorija_11[vas],tblIšlaidųKategorija_12[vas],tblIšlaidųKategorija_13[vas],tblIšlaidųKategorija_14[vas],tblIšlaidųKategorija_15[vas])","v":5243},{"$f":"SUM(tblIšlaidųKategorija_01[kov],tblIšlaidųKategorija_02[kov],tblIšlaidųKategorija_03[kov],tblIšlaidųKategorija_04[kov],tblIšlaidųKategorija_05[kov],tblIšlaidųKategorija_06[kov],tblIšlaidųKategorija_07[kov],tblIšlaidųKategorija_08[kov],tblIšlaidųKategorija_09[kov],,tblIšlaidųKategorija_10[kov],tblIšlaidųKategorija_11[kov],tblIšlaidųKategorija_12[kov],tblIšlaidųKategorija_13[kov],tblIšlaidųKategorija_14[kov],tblIšlaidųKategorija_15[kov])","v":5933},{"$f":"SUM(tblIšlaidųKategorija_01[bal],tblIšlaidųKategorija_02[bal],tblIšlaidųKategorija_03[bal],tblIšlaidųKategorija_04[bal],tblIšlaidųKategorija_05[bal],tblIšlaidųKategorija_06[bal],tblIšlaidųKategorija_07[bal],tblIšlaidųKategorija_08[bal],tblIšlaidųKategorija_09[bal],,tblIšlaidųKategorija_10[bal],tblIšlaidųKategorija_11[bal],tblIšlaidųKategorija_12[bal],tblIšlaidųKategorija_13[bal],tblIšlaidųKategorija_14[bal],tblIšlaidųKategorija_15[bal])","v":5858},{"$f":"SUM(tblIšlaidųKategorija_01[geg],tblIšlaidųKategorija_02[geg],tblIšlaidųKategorija_03[geg],tblIšlaidųKategorija_04[geg],tblIšlaidųKategorija_05[geg],tblIšlaidųKategorija_06[geg],tblIšlaidųKategorija_07[geg],tblIšlaidųKategorija_08[geg],tblIšlaidųKategorija_09[geg],,tblIšlaidųKategorija_10[geg],tblIšlaidųKategorija_11[geg],tblIšlaidųKategorija_12[geg],tblIšlaidųKategorija_13[geg],tblIšlaidųKategorija_14[geg],tblIšlaidųKategorija_15[geg])","v":5468},{"$f":"SUM(tblIšlaidųKategorija_01[bir],tblIšlaidųKategorija_02[bir],tblIšlaidųKategorija_03[bir],tblIšlaidųKategorija_04[bir],tblIšlaidųKategorija_05[bir],tblIšlaidųKategorija_06[bir],tblIšlaidųKategorija_07[bir],tblIšlaidųKategorija_08[bir],tblIšlaidųKategorija_09[bir],,tblIšlaidųKategorija_10[bir],tblIšlaidųKategorija_11[bir],tblIšlaidųKategorija_12[bir],tblIšlaidųKategorija_13[bir],tblIšlaidųKategorija_14[bir],tblIšlaidųKategorija_15[bir])","v":5118},{"$f":"SUM(tblIšlaidųKategorija_01[liep],tblIšlaidųKategorija_02[liep],tblIšlaidųKategorija_03[liep],tblIšlaidųKategorija_04[liep],tblIšlaidųKategorija_05[liep],tblIšlaidųKategorija_06[liep],tblIšlaidųKategorija_07[liep],tblIšlaidųKategorija_08[liep],tblIšlaidųKategorija_09[liep],,tblIšlaidųKategorija_10[liep],tblIšlaidųKategorija_11[liep],tblIšlaidųKategorija_12[liep],tblIšlaidųKategorija_13[liep],tblIšlaidųKategorija_14[liep],tblIšlaidųKategorija_15[liep])","v":5743},{"$f":"SUM(tblIšlaidųKategorija_01[rugp],tblIšlaidųKategorija_02[rugp],tblIšlaidųKategorija_03[rugp],tblIšlaidųKategorija_04[rugp],tblIšlaidųKategorija_05[rugp],tblIšlaidųKategorija_06[rugp],tblIšlaidųKategorija_07[rugp],tblIšlaidųKategorija_08[rugp],tblIšlaidųKategorija_09[rugp],,tblIšlaidųKategorija_10[rugp],tblIšlaidųKategorija_11[rugp],tblIšlaidųKategorija_12[rugp],tblIšlaidųKategorija_13[rugp],tblIšlaidųKategorija_14[rugp],tblIšlaidųKategorija_15[rugp])","v":5353},{"$f":"SUM(tblIšlaidųKategorija_01[rugs],tblIšlaidųKategorija_02[rugs],tblIšlaidųKategorija_03[rugs],tblIšlaidųKategorija_04[rugs],tblIšlaidųKategorija_05[rugs],tblIšlaidųKategorija_06[rugs],tblIšlaidųKategorija_07[rugs],tblIšlaidųKategorija_08[rugs],tblIšlaidųKategorija_09[rugs],,tblIšlaidųKategorija_10[rugs],tblIšlaidųKategorija_11[rugs],tblIšlaidųKategorija_12[rugs],tblIšlaidųKategorija_13[rugs],tblIšlaidųKategorija_14[rugs],tblIšlaidųKategorija_15[rugs])","v":5983},{"$f":"SUM(tblIšlaidųKategorija_01[spal],tblIšlaidųKategorija_02[spal],tblIšlaidųKategorija_03[spal],tblIšlaidųKategorija_04[spal],tblIšlaidųKategorija_05[spal],tblIšlaidųKategorija_06[spal],tblIšlaidųKategorija_07[spal],tblIšlaidųKategorija_08[spal],tblIšlaidųKategorija_09[spal],,tblIšlaidųKategorija_10[spal],tblIšlaidųKategorija_11[spal],tblIšlaidųKategorija_12[spal],tblIšlaidųKategorija_13[spal],tblIšlaidųKategorija_14[spal],tblIšlaidųKategorija_15[spal])","v":5943},{"$f":"SUM(tblIšlaidųKategorija_01[lap],tblIšlaidųKategorija_02[lap],tblIšlaidųKategorija_03[lap],tblIšlaidųKategorija_04[lap],tblIšlaidųKategorija_05[lap],tblIšlaidųKategorija_06[lap],tblIšlaidųKategorija_07[lap],tblIšlaidųKategorija_08[lap],tblIšlaidųKategorija_09[lap],,tblIšlaidųKategorija_10[lap],tblIšlaidųKategorija_11[lap],tblIšlaidųKategorija_12[lap],tblIšlaidųKategorija_13[lap],tblIšlaidųKategorija_14[lap],tblIšlaidųKategorija_15[lap])","v":5058},{"$f":"SUM(tblIšlaidųKategorija_01[gruod],tblIšlaidųKategorija_02[gruod],tblIšlaidųKategorija_03[gruod],tblIšlaidųKategorija_04[gruod],tblIšlaidųKategorija_05[gruod],tblIšlaidųKategorija_06[gruod],tblIšlaidųKategorija_07[gruod],tblIšlaidųKategorija_08[gruod],tblIšlaidųKategorija_09[gruod],,tblIšlaidųKategorija_10[gruod],tblIšlaidųKategorija_11[gruod],tblIšlaidųKategorija_12[gruod],tblIšlaidųKategorija_13[gruod],tblIšlaidųKategorija_14[gruod],tblIšlaidųKategorija_15[gruod])","v":4958},{"$f":"SUM(tblIšlaidųKategorija_01[metai],tblIšlaidųKategorija_02[metai],tblIšlaidųKategorija_03[metai],tblIšlaidųKategorija_04[metai],tblIšlaidųKategorija_05[metai],tblIšlaidųKategorija_06[metai],tblIšlaidųKategorija_07[metai],tblIšlaidųKategorija_08[metai],tblIšlaidųKategorija_09[metai],,tblIšlaidųKategorija_10[metai],tblIšlaidųKategorija_11[metai],tblIšlaidųKategorija_12[metai],tblIšlaidųKategorija_13[metai],tblIšlaidųKategorija_14[metai],tblIšlaidųKategorija_15[metai])","v":68594},{"$f":"O7/12","v":{"v":5716.166666666667,"d":"5716"}}]
[null,"Grynosios pajamos",{"$f":"C6-C7","v":-3714},{"$f":"D6-D7","v":3790},-1933,-1813,3532,-3593,-4243,1147,-1983,-1943,3942,-958,-7769,{"$f":"O8/12","v":{"v":-647.4166666666666,"d":"-647"}}]
[null,"VISAS GRYNŲJŲ PINIGŲ SRAUTAS",{"$f":"C5+C6-C7","v":-2714},{"$f":"C9+D6-D7","v":1076},{"$f":"D9+E6-E7","v":-857},-2670,862,-2731,-6974,-5827,-7810,-9753,-5811,-6769]
[]
[]
[null,"pajamos"]
[null,"Darbo užmokestis ir patarimai",4000,4000,4000,4000,4000,1000,1000,1000,4000,4000,4000,4000,{"$f":"SUM(tblPajamos[[#This Row],[sau]:[gruod]])","v":39000},{"$f":"tblPajamos[[#This Row],[metai]]/12","v":3250}]
[null,"pajamos iš palūkanų",222,33,null,45,null,25,{"$nulls":6},{"$f":"SUM(tblPajamos[[#This Row],[sau]:[gruod]])","v":325},{"$f":"tblPajamos[[#This Row],[metai]]/12","v":{"v":27.083333333333332,"d":"27"}}]
[null,"Dividendai",null,5000,null,null,5000,null,null,5000,null,null,5000,null,{"$f":"SUM(tblPajamos[[#This Row],[sau]:[gruod]])","v":20000},{"$f":"tblPajamos[[#This Row],[metai]]/12","v":{"v":1666.6666666666667,"d":"1667"}}]
[null,"susigrąžinti pinigai",{"$nulls":5},500,500,500,{"$nulls":4},{"$f":"SUM(tblPajamos[[#This Row],[sau]:[gruod]])","v":1500},{"$f":"tblPajamos[[#This Row],[metai]]/12","v":125}]
[null,"Kita",{"$nulls":12},{"$f":"SUM(tblPajamos[[#This Row],[sau]:[gruod]])","v":0},{"$f":"tblPajamos[[#This Row],[metai]]/12","v":0}]
[null,"VISOS PAJAMOS",{"$f":"SUM(tblPajamos[sau])","v":4222},{"$f":"SUM(tblPajamos[vas])","v":9033},{"$f":"SUM(tblPajamos[kov])","v":4000},{"$f":"SUM(tblPajamos[bal])","v":4045},{"$f":"SUM(tblPajamos[geg])","v":9000},{"$f":"SUM(tblPajamos[bir])","v":1525},{"$f":"SUM(tblPajamos[liep])","v":1500},{"$f":"SUM(tblPajamos[rugp])","v":6500},{"$f":"SUM(tblPajamos[rugs])","v":4000},{"$f":"SUM(tblPajamos[spal])","v":4000},{"$f":"SUM(tblPajamos[lap])","v":9000},{"$f":"SUM(tblPajamos[gruod])","v":4000},{"$f":"SUM(tblPajamos[metai])","v":60825},{"$f":"tblPajamos[[#Totals],[metai]]/12","v":{"v":5068.75,"d":"5069"}}]
[]
[]
[null,"namai"]
[null,"Nekilnojamos turtas / nuoma",850,850,850,850,850,850,850,850,850,850,900,900,{"$f":"SUM(tblIšlaidųKategorija_01[[#This Row],[sau]:[gruod]])","v":10300},{"$f":"tblIšlaidųKategorija_01[[#This Row],[metai]]/12","v":{"v":858.3333333333334,"d":"858"}}]
[null,"Elektros energija",200,200,175,150,150,175,225,275,200,150,150,150,{"$f":"SUM(tblIšlaidųKategorija_01[[#This Row],[sau]:[gruod]])","v":2200},{"$f":"tblIšlaidųKategorija_01[[#This Row],[metai]]/12","v":{"v":183.33333333333334,"d":"183"}}]
[null,"Telefonas",50,50,100,100,50,50,100,100,50,50,50,50,{"$f":"SUM(tblIšlaidųKategorija_01[[#This Row],[sau]:[gruod]])","v":800},{"$f":"tblIšlaidųKategorija_01[[#This Row],[metai]]/12","v":{"v":66.66666666666667,"d":"67"}}]
[null,"Kabelinis / satelitinis ryšys",69,69,69,69,69,69,69,69,69,69,69,69,{"$f":"SUM(tblIšlaidųKategorija_01[[#This Row],[sau]:[gruod]])","v":828},{"$f":"tblIšlaidųKategorija_01[[#This Row],[metai]]/12","v":69}]
[null,"Internetas",39,39,39,39,39,39,39,39,39,39,39,39,{"$f":"SUM(tblIšlaidųKategorija_01[[#This Row],[sau]:[gruod]])","v":468},{"$f":"tblIšlaidųKategorija_01[[#This Row],[metai]]/12","v":39}]
[null,{"$f":"UPPER(\"Iš viso \" & B21)","v":"IŠ VISO NAMAI"},{"$f":"SUM(tblIšlaidųKategorija_01[sau])","v":1208},{"$f":"SUM(tblIšlaidųKategorija_01[vas])","v":1208},{"$f":"SUM(tblIšlaidųKategorija_01[kov])","v":1233},{"$f":"SUM(tblIšlaidųKategorija_01[bal])","v":1208},{"$f":"SUM(tblIšlaidųKategorija_01[geg])","v":1158},{"$f":"SUM(tblIšlaidųKategorija_01[bir])","v":1183},{"$f":"SUM(tblIšlaidųKategorija_01[liep])","v":1283},{"$f":"SUM(tblIšlaidųKategorija_01[rugp])","v":1333},{"$f":"SUM(tblIšlaidųKategorija_01[rugs])","v":1208},{"$f":"SUM(tblIšlaidųKategorija_01[spal])","v":1158},{"$f":"SUM(tblIšlaidųKategorija_01[lap])","v":1208},{"$f":"SUM(tblIšlaidųKategorija_01[gruod])","v":1208},{"$f":"SUM(tblIšlaidųKategorija_01[metai])","v":14596},{"$f":"tblIšlaidųKategorija_01[[#Totals],[metai]]/12","v":{"v":1216.3333333333333,"d":"1216"}}]
[]
[]
[null,"kasdienės išlaidos"]
[null,"bakalėja",345,250,200,400,350,250,400,350,250,400,350,250,{"$f":"SUM(tblIšlaidųKategorija_02[[#This Row],[sau]:[gruod]])","v":3795},{"$f":"tblIšlaidųKategorija_02[[#This Row],[metai]]/12","v":{"v":316.25,"d":"316"}}]
[null,"Drabužiai",300,null,null,300,null,null,300,null,null,300,null,null,{"$f":"SUM(tblIšlaidųKategorija_02[[#This Row],[sau]:[gruod]])","v":1200},{"$f":"tblIšlaidųKategorija_02[[#This Row],[metai]]/12","v":100}]
[null,"Vakarienė / maistas ne namie",125,125,300,125,125,200,125,125,125,125,125,125,{"$f":"SUM(tblIšlaidųKategorija_02[[#This Row],[sau]:[gruod]])","v":1750},{"$f":"tblIšlaidųKategorija_02[[#This Row],[metai]]/12","v":{"v":145.83333333333334,"d":"146"}}]
[null,"Salonas / kirpykla",25,null,50,null,25,null,50,null,25,null,100,null,{"$f":"SUM(tblIšlaidųKategorija_02[[#This Row],[sau]:[gruod]])","v":275},{"$f":"tblIšlaidųKategorija_02[[#This Row],[metai]]/12","v":{"v":22.916666666666668,"d":"23"}}]
[null,"Kita",{"$nulls":12},{"$f":"SUM(tblIšlaidųKategorija_02[[#This Row],[sau]:[gruod]])","v":0},{"$f":"tblIšlaidųKategorija_02[[#This Row],[metai]]/12","v":0}]
[null,{"$f":"UPPER(\"Iš viso \" & B30)","v":"IŠ VISO KASDIENĖS IŠLAIDOS"},{"$f":"SUM(tblIšlaidųKategorija_02[sau])","v":795},{"$f":"SUM(tblIšlaidųKategorija_02[vas])","v":375},{"$f":"SUM(tblIšlaidųKategorija_02[kov])","v":550},{"$f":"SUM(tblIšlaidųKategorija_02[bal])","v":825},{"$f":"SUM(tblIšlaidųKategorija_02[geg])","v":500},{"$f":"SUM(tblIšlaidųKategorija_02[bir])","v":450},{"$f":"SUM(tblIšlaidųKategorija_02[liep])","v":875},{"$f":"SUM(tblIšlaidųKategorija_02[rugp])","v":475},{"$f":"SUM(tblIšlaidųKategorija_02[rugs])","v":400},{"$f":"SUM(tblIšlaidųKategorija_02[spal])","v":825},{"$f":"SUM(tblIšlaidųKategorija_02[lap])","v":575},{"$f":"SUM(tblIšlaidųKategorija_02[gruod])","v":375},{"$f":"SUM(tblIšlaidųKategorija_02[metai])","v":7020},{"$f":"tblIšlaidųKategorija_02[[#Totals],[metai]]/12","v":585}]
[]
[]
[null,"vaikai"]
[null,"mokyklos priemonės",123,null,100,{"$nulls":4},345,{"$nulls":4},{"$f":"SUM(tblIšlaidųKategorija_03[[#This Row],[sau]:[gruod]])","v":568},{"$f":"tblIšlaidųKategorija_03[[#This Row],[metai]]/12","v":{"v":47.333333333333336,"d":"47"}}]
[null,"Drabužiai",null,100,null,null,100,{"$nulls":3},100,null,null,100,{"$f":"SUM(tblIšlaidųKategorija_03[[#This Row],[sau]:[gruod]])","v":400},{"$f":"tblIšlaidųKategorija_03[[#This Row],[metai]]/12","v":{"v":33.333333333333336,"d":"33"}}]
[null,"pietūs mokykloje",50,50,50,50,50,50,null,null,50,50,50,50,{"$f":"SUM(tblIšlaidųKategorija_03[[#This Row],[sau]:[gruod]])","v":500},{"$f":"tblIšlaidųKategorija_03[[#This Row],[metai]]/12","v":{"v":41.666666666666664,"d":"42"}}]
[null,"Medicinos paslaugos",200,200,200,200,200,200,200,200,200,200,200,200,{"$f":"SUM(tblIšlaidųKategorija_03[[#This Row],[sau]:[gruod]])","v":2400},{"$f":"tblIšlaidųKategorija_03[[#This Row],[metai]]/12","v":200}]
[null,"Kita",2000,150,{"$nulls":3},200,{"$nulls":3},100,null,null,{"$f":"SUM(tblIšlaidųKategorija_03[[#This Row],[sau]:[gruod]])","v":2450},{"$f":"tblIšlaidųKategorija_03[[#This Row],[metai]]/12","v":{"v":204.16666666666666,"d":"204"}}]
[null,{"$f":"UPPER(\"Iš viso \" & B39)","v":"IŠ VISO VAIKAI"},{"$f":"SUM(tblIšlaidųKategorija_03[sau])","v":2373},{"$f":"SUM(tblIšlaidųKategorija_03[vas])","v":500},{"$f":"SUM(tblIšlaidųKategorija_03[kov])","v":350},{"$f":"SUM(tblIšlaidųKategorija_03[bal])","v":250},{"$f":"SUM(tblIšlaidųKategorija_03[geg])","v":350},{"$f":"SUM(tblIšlaidųKategorija_03[bir])","v":450},{"$f":"SUM(tblIšlaidųKategorija_03[liep])","v":200},{"$f":"SUM(tblIšlaidųKategorija_03[rugp])","v":545},{"$f":"SUM(tblIšlaidųKategorija_03[rugs])","v":350},{"$f":"SUM(tblIšlaidųKategorija_03[spal])","v":350},{"$f":"SUM(tblIšlaidųKategorija_03[lap])","v":250},{"$f":"SUM(tblIšlaidųKategorija_03[gruod])","v":350},{"$f":"SUM(tblIšlaidųKategorija_03[metai])","v":6318},{"$f":"tblIšlaidųKategorija_03[[#Totals],[metai]]/12","v":{"v":526.5,"d":"527"}}]
[]
[]
[null,"transportas"]
[null,"mokestis už transporto priemonę",600,600,600,600,600,600,600,600,600,600,600,600,{"$f":"SUM(tblIšlaidųKategorija_04[[#This Row],[sau]:[gruod]])","v":7200},{"$f":"tblIšlaidųKategorija_04[[#This Row],[metai]]/12","v":600}]
[null,"Degalai",325,325,325,325,325,500,500,500,325,325,325,325,{"$f":"SUM(tblIšlaidųKategorija_04[[#This Row],[sau]:[gruod]])","v":4425},{"$f":"tblIšlaidųKategorija_04[[#This Row],[metai]]/12","v":{"v":368.75,"d":"369"}}]
[null,"Remontas",null,100,null,100,null,100,null,100,null,100,null,null,{"$f":"SUM(tblIšlaidųKategorija_04[[#This Row],[sau]:[gruod]])","v":500},{"$f":"tblIšlaidųKategorija_04[[#This Row],[metai]]/12","v":{"v":41.666666666666664,"d":"42"}}]
[null,"Registracija / licencija",185,{"$nulls":7},225,{"$nulls":3},{"$f":"SUM(tblIšlaidųKategorija_04[[#This Row],[sau]:[gruod]])","v":410},{"$f":"tblIšlaidųKategorija_04[[#This Row],[metai]]/12","v":{"v":34.166666666666664,"d":"34"}}]
[null,"Kita",{"$nulls":4},400,{"$nulls":7},{"$f":"SUM(tblIšlaidųKategorija_04[[#This Row],[sau]:[gruod]])","v":400},{"$f":"tblIšlaidųKategorija_04[[#This Row],[metai]]/12","v":{"v":33.333333333333336,"d":"33"}}]
[null,{"$f":"UPPER(\"Iš viso \" & B48)","v":"IŠ VISO TRANSPORTAS"},{"$f":"SUM(tblIšlaidųKategorija_04[sau])","v":1110},{"$f":"SUM(tblIšlaidųKategorija_04[vas])","v":1025},{"$f":"SUM(tblIšlaidųKategorija_04[kov])","v":925},{"$f":"SUM(tblIšlaidųKategorija_04[bal])","v":1025},{"$f":"SUM(tblIšlaidųKategorija_04[geg])","v":1325},{"$f":"SUM(tblIšlaidųKategorija_04[bir])","v":1200},{"$f":"SUM(tblIšlaidųKategorija_04[liep])","v":1100},{"$f":"SUM(tblIšlaidųKategorija_04[rugp])","v":1200},{"$f":"SUM(tblIšlaidųKategorija_04[rugs])","v":1150},{"$f":"SUM(tblIšlaidųKategorija_04[spal])","v":1025},{"$f":"SUM(tblIšlaidųKategorija_04[lap])","v":925},{"$f":"SUM(tblIšlaidųKategorija_04[gruod])","v":925},{"$f":"SUM(tblIšlaidųKategorija_04[metai])","v":12935},{"$f":"tblIšlaidųKategorija_04[[#Totals],[metai]]/12","v":{"v":1077.9166666666667,"d":"1078"}}]
[]
[]
[null,"sveikata"]
[null,"Daktaras / dantistas",null,35,null,null,35,35,35,null,null,35,null,null,{"$f":"SUM(tblIšlaidųKategorija_05[[#This Row],[sau]:[gruod]])","v":175},{"$f":"tblIšlaidųKategorija_05[[#This Row],[metai]]/12","v":{"v":14.583333333333334,"d":"15"}}]
[null,"Medikamentai / vaistai",25,25,25,25,25,25,25,25,25,25,25,25,{"$f":"SUM(tblIšlaidųKategorija_05[[#This Row],[sau]:[gruod]])","v":300},{"$f":"tblIšlaidųKategorija_05[[#This Row],[metai]]/12","v":25}]
[null,"Kita",null,null,150,{"$nulls":5},150,{"$nulls":3},{"$f":"SUM(tblIšlaidųKategorija_05[[#This Row],[sau]:[gruod]])","v":300},{"$f":"tblIšlaidųKategorija_05[[#This Row],[metai]]/12","v":25}]
[null,{"$f":"UPPER(\"Iš viso \" & B57)","v":"IŠ VISO SVEIKATA"},{"$f":"SUM(tblIšlaidųKategorija_05[sau])","v":25},{"$f":"SUM(tblIšlaidųKategorija_05[vas])","v":60},{"$f":"SUM(tblIšlaidųKategorija_05[kov])","v":175},{"$f":"SUM(tblIšlaidųKategorija_05[bal])","v":25},{"$f":"SUM(tblIšlaidųKategorija_05[geg])","v":60},{"$f":"SUM(tblIšlaidųKategorija_05[bir])","v":60},{"$f":"SUM(tblIšlaidųKategorija_05[liep])","v":60},{"$f":"SUM(tblIšlaidųKategorija_05[rugp])","v":25},{"$f":"SUM(tblIšlaidųKategorija_05[rugs])","v":175},{"$f":"SUM(tblIšlaidųKategorija_05[spal])","v":60},{"$f":"SUM(tblIšlaidųKategorija_05[lap])","v":25},{"$f":"SUM(tblIšlaidųKategorija_05[gruod])","v":25},{"$f":"SUM(tblIšlaidųKategorija_05[metai])","v":775},{"$f":"tblIšlaidųKategorija_05[[#Totals],[metai]]/12","v":{"v":64.58333333333333,"d":"65"}}]
[]
[]
[null,"draudimas"]
[null,"Automobilis",150,150,150,150,150,150,150,150,150,150,150,150,{"$f":"SUM(tblIšlaidųKategorija_06[[#This Row],[sau]:[gruod]])","v":1800},{"$f":"tblIšlaidųKategorija_06[[#This Row],[metai]]/12","v":150}]
[null,"Sveikata",675,675,675,675,675,675,675,675,675,675,675,675,{"$f":"SUM(tblIšlaidųKategorija_06[[#This Row],[sau]:[gruod]])","v":8100},{"$f":"tblIšlaidųKategorija_06[[#This Row],[metai]]/12","v":675}]
[null,"eksploatacijos_laikas",150,150,150,150,150,150,150,150,150,150,150,150,{"$f":"SUM(tblIšlaidųKategorija_06[[#This Row],[sau]:[gruod]])","v":1800},{"$f":"tblIšlaidųKategorija_06[[#This Row],[metai]]/12","v":150}]
[null,{"$f":"UPPER(\"Iš viso \" & B64)","v":"IŠ VISO DRAUDIMAS"},{"$f":"SUM(tblIšlaidųKategorija_06[sau])","v":975},{"$f":"SUM(tblIšlaidųKategorija_06[vas])","v":975},{"$f":"SUM(tblIšlaidųKategorija_06[kov])","v":975},{"$f":"SUM(tblIšlaidųKategorija_06[bal])","v":975},{"$f":"SUM(tblIšlaidųKategorija_06[geg])","v":975},{"$f":"SUM(tblIšlaidųKategorija_06[bir])","v":975},{"$f":"SUM(tblIšlaidųKategorija_06[liep])","v":975},{"$f":"SUM(tblIšlaidųKategorija_06[rugp])","v":975},{"$f":"SUM(tblIšlaidųKategorija_06[rugs])","v":975},{"$f":"SUM(tblIšlaidųKategorija_06[spal])","v":975},{"$f":"SUM(tblIšlaidųKategorija_06[lap])","v":975},{"$f":"SUM(tblIšlaidųKategorija_06[gruod])","v":975},{"$f":"SUM(tblIšlaidųKategorija_06[metai])","v":11700},{"$f":"tblIšlaidųKategorija_06[[#Totals],[metai]]/12","v":975}]
[]
[]
[null,"švietimas"]
[null,"Mokestis už mokslą",null,null,400,{"$nulls":5},400,{"$nulls":3},{"$f":"SUM(tblIšlaidųKategorija_07[[#This Row],[sau]:[gruod]])","v":800},{"$f":"tblIšlaidųKategorija_07[[#This Row],[metai]]/12","v":{"v":66.66666666666667,"d":"67"}}]
[null,"Knygos",null,null,225,{"$nulls":5},225,{"$nulls":3},{"$f":"SUM(tblIšlaidųKategorija_07[[#This Row],[sau]:[gruod]])","v":450},{"$f":"tblIšlaidųKategorija_07[[#This Row],[metai]]/12","v":{"v":37.5,"d":"38"}}]
[null,"Kita",{"$nulls":12},{"$f":"SUM(tblIšlaidųKategorija_07[[#This Row],[sau]:[gruod]])","v":0},{"$f":"tblIšlaidųKategorija_07[[#This Row],[metai]]/12","v":0}]
[null,{"$f":"UPPER(\"Iš viso \" & B71)","v":"IŠ VISO ŠVIETIMAS"},{"$f":"SUM(tblIšlaidųKategorija_07[sau])","v":0},{"$f":"SUM(tblIšlaidųKategorija_07[vas])","v":0},{"$f":"SUM(tblIšlaidųKategorija_07[kov])","v":625},{"$f":"SUM(tblIšlaidųKategorija_07[bal])","v":0},{"$f":"SUM(tblIšlaidųKategorija_07[geg])","v":0},{"$f":"SUM(tblIšlaidųKategorija_07[bir])","v":0},{"$f":"SUM(tblIšlaidųKategorija_07[liep])","v":0},{"$f":"SUM(tblIšlaidųKategorija_07[rugp])","v":0},{"$f":"SUM(tblIšlaidųKategorija_07[rugs])","v":625},{"$f":"SUM(tblIšlaidųKategorija_07[spal])","v":0},{"$f":"SUM(tblIšlaidųKategorija_07[lap])","v":0},{"$f":"SUM(tblIšlaidųKategorija_07[gruod])","v":0},{"$f":"SUM(tblIšlaidųKategorija_07[metai])","v":1250},{"$f":"tblIšlaidųKategorija_07[[#Totals],[metai]]/12","v":{"v":104.16666666666667,"d":"104"}}]
[]
[]
[null,"labdara"]
[null,"įteiktos dovanos",null,100,{"$nulls":3},100,{"$nulls":3},100,null,null,{"$f":"SUM(tblIšlaidųKategorija_08[[#This Row],[sau]:[gruod]])","v":300},{"$f":"tblIšlaidųKategorija_08[[#This Row],[metai]]/12","v":25}]
[null,"Aukos labdarai",null,null,100,null,100,null,100,null,100,null,100,null,{"$f":"SUM(tblIšlaidųKategorija_08[[#This Row],[sau]:[gruod]])","v":500},{"$f":"tblIšlaidųKategorija_08[[#This Row],[metai]]/12","v":{"v":41.666666666666664,"d":"42"}}]
[null,"Kita",{"$nulls":3},100,{"$nulls":3},100,{"$nulls":3},100,{"$f":"SUM(tblIšlaidųKategorija_08[[#This Row],[sau]:[gruod]])","v":300},{"$f":"tblIšlaidųKategorija_08[[#This Row],[metai]]/12","v":25}]
[null,{"$f":"UPPER(\"Iš viso \" & B78)","v":"IŠ VISO LABDARA"},{"$f":"SUM(tblIšlaidųKategorija_08[sau])","v":0},{"$f":"SUM(tblIšlaidųKategorija_08[vas])","v":100},{"$f":"SUM(tblIšlaidųKategorija_08[kov])","v":100},{"$f":"SUM(tblIšlaidųKategorija_08[bal])","v":100},{"$f":"SUM(tblIšlaidųKategorija_08[geg])","v":100},{"$f":"SUM(tblIšlaidųKategorija_08[bir])","v":100},{"$f":"SUM(tblIšlaidųKategorija_08[liep])","v":100},{"$f":"SUM(tblIšlaidųKategorija_08[rugp])","v":100},{"$f":"SUM(tblIšlaidųKategorija_08[rugs])","v":100},{"$f":"SUM(tblIšlaidųKategorija_08[spal])","v":100},{"$f":"SUM(tblIšlaidųKategorija_08[lap])","v":100},{"$f":"SUM(tblIšlaidųKategorija_08[gruod])","v":100},{"$f":"SUM(tblIšlaidųKategorija_08[metai])","v":1100},{"$f":"tblIšlaidųKategorija_08[[#Totals],[metai]]/12","v":{"v":91.66666666666667,"d":"92"}}]
[]
[]
[null,"santaupos"]
[null,"Nelaimingų atsitikimų fondas",100,100,100,100,100,{"$nulls":3},100,100,100,100,{"$f":"SUM(tblIšlaidųKategorija_09[[#This Row],[sau]:[gruod]])","v":900},{"$f":"tblIšlaidųKategorija_09[[#This Row],[metai]]/12","v":75}]
[null,"Pensijų fondas (401k, IRA)",500,500,500,500,500,500,500,500,500,500,500,500,{"$f":"SUM(tblIšlaidųKategorija_09[[#This Row],[sau]:[gruod]])","v":6000},{"$f":"tblIšlaidųKategorija_09[[#This Row],[metai]]/12","v":500}]
[null,"Perkėlimas į santaupas",200,200,200,200,200,{"$nulls":3},200,200,200,200,{"$f":"SUM(tblIšlaidųKategorija_09[[#This Row],[sau]:[gruod]])","v":1800},{"$f":"tblIšlaidųKategorija_09[[#This Row],[metai]]/12","v":150}]
[null,{"$f":"UPPER(\"Iš viso \" & B85)","v":"IŠ VISO SANTAUPOS"},{"$f":"SUM(tblIšlaidųKategorija_09[sau])","v":800},{"$f":"SUM(tblIšlaidųKategorija_09[vas])","v":800},{"$f":"SUM(tblIšlaidųKategorija_09[kov])","v":800},{"$f":"SUM(tblIšlaidųKategorija_09[bal])","v":800},{"$f":"SUM(tblIšlaidųKategorija_09[geg])","v":800},{"$f":"SUM(tblIšlaidųKategorija_09[bir])","v":500},{"$f":"SUM(tblIšlaidųKategorija_09[liep])","v":500},{"$f":"SUM(tblIšlaidųKategorija_09[rugp])","v":500},{"$f":"SUM(tblIšlaidųKategorija_09[rugs])","v":800},{"$f":"SUM(tblIšlaidųKategorija_09[spal])","v":800},{"$f":"SUM(tblIšlaidųKategorija_09[lap])","v":800},{"$f":"SUM(tblIšlaidųKategorija_09[gruod])","v":800},{"$f":"SUM(tblIšlaidųKategorija_09[metai])","v":8700},{"$f":"tblIšlaidųKategorija_09[[#Totals],[metai]]/12","v":725}]
[]
[]
[null,"įsipareigojimai"]
[null,"Kredito kortelė Nr. 1",145,145,145,145,145,145,145,145,145,145,145,145,{"$f":"SUM(tblIšlaidųKategorija_10[[#This Row],[sau]:[gruod]])","v":1740},{"$f":"tblIšlaidųKategorija_10[[#This Row],[metai]]/12","v":145}]
[null,"Valstybiniai mokesčiai",450,null,null,450,null,null,450,null,null,450,null,null,{"$f":"SUM(tblIšlaidųKategorija_10[[#This Row],[sau]:[gruod]])","v":1800},{"$f":"tblIšlaidųKategorija_10[[#This Row],[metai]]/12","v":150}]
[null,"studentų paskola",55,55,55,55,55,55,55,55,55,55,55,55,{"$f":"SUM(tblIšlaidųKategorija_10[[#This Row],[sau]:[gruod]])","v":660},{"$f":"tblIšlaidųKategorija_10[[#This Row],[metai]]/12","v":55}]
[null,{"$f":"UPPER(\"Iš viso \" & B92)","v":"IŠ VISO ĮSIPAREIGOJIMAI"},{"$f":"SUM(tblIšlaidųKategorija_10[sau])","v":650},{"$f":"SUM(tblIšlaidųKategorija_10[vas])","v":200},{"$f":"SUM(tblIšlaidųKategorija_10[kov])","v":200},{"$f":"SUM(tblIšlaidųKategorija_10[bal])","v":650},{"$f":"SUM(tblIšlaidųKategorija_10[geg])","v":200},{"$f":"SUM(tblIšlaidųKategorija_10[bir])","v":200},{"$f":"SUM(tblIšlaidųKategorija_10[liep])","v":650},{"$f":"SUM(tblIšlaidųKategorija_10[rugp])","v":200},{"$f":"SUM(tblIšlaidųKategorija_10[rugs])","v":200},{"$f":"SUM(tblIšlaidųKategorija_10[spal])","v":650},{"$f":"SUM(tblIšlaidųKategorija_10[lap])","v":200},{"$f":"SUM(tblIšlaidųKategorija_10[gruod])","v":200},{"$f":"SUM(tblIšlaidųKategorija_10[metai])","v":4200},{"$f":"tblIšlaidųKategorija_10[[#Totals],[metai]]/12","v":350}]
[]
[]
[null," "]
[{"$nulls":14},{"$f":"SUM(tblIšlaidųKategorija_11[[#This Row],[sau]:[gruod]])","v":0},{"$f":"tblIšlaidųKategorija_11[[#This Row],[metai]]/12","v":0}]
[{"$nulls":14},{"$f":"SUM(tblIšlaidųKategorija_11[[#This Row],[sau]:[gruod]])","v":0},{"$f":"tblIšlaidųKategorija_11[[#This Row],[metai]]/12","v":0}]
[{"$nulls":14},{"$f":"SUM(tblIšlaidųKategorija_11[[#This Row],[sau]:[gruod]])","v":0},{"$f":"tblIšlaidųKategorija_11[[#This Row],[metai]]/12","v":0}]
[null,{"$f":"UPPER(\"Iš viso \" & B99)","v":"IŠ VISO  "},{"$f":"SUM(tblIšlaidųKategorija_11[sau])","v":0},{"$f":"SUM(tblIšlaidųKategorija_11[vas])","v":0},{"$f":"SUM(tblIšlaidųKategorija_11[kov])","v":0},{"$f":"SUM(tblIšlaidųKategorija_11[bal])","v":0},{"$f":"SUM(tblIšlaidųKategorija_11[geg])","v":0},{"$f":"SUM(tblIšlaidųKategorija_11[bir])","v":0},{"$f":"SUM(tblIšlaidųKategorija_11[liep])","v":0},{"$f":"SUM(tblIšlaidųKategorija_11[rugp])","v":0},{"$f":"SUM(tblIšlaidųKategorija_11[rugs])","v":0},{"$f":"SUM(tblIšlaidųKategorija_11[spal])","v":0},{"$f":"SUM(tblIšlaidųKategorija_11[lap])","v":0},{"$f":"SUM(tblIšlaidųKategorija_11[gruod])","v":0},{"$f":"SUM(tblIšlaidųKategorija_11[metai])","v":0},{"$f":"tblIšlaidųKategorija_11[[#Totals],[metai]]/12","v":0}]
[]
[]
[null," "]
[{"$nulls":14},{"$f":"SUM(tblIšlaidųKategorija_12[[#This Row],[sau]:[gruod]])","v":0},{"$f":"tblIšlaidųKategorija_12[[#This Row],[metai]]/12","v":0}]
[{"$nulls":14},{"$f":"SUM(tblIšlaidųKategorija_12[[#This Row],[sau]:[gruod]])","v":0},{"$f":"tblIšlaidųKategorija_12[[#This Row],[metai]]/12","v":0}]
[{"$nulls":14},{"$f":"SUM(tblIšlaidųKategorija_12[[#This Row],[sau]:[gruod]])","v":0},{"$f":"tblIšlaidųKategorija_12[[#This Row],[metai]]/12","v":0}]
[null,{"$f":"UPPER(\"Iš viso \" & B106)","v":"IŠ VISO  "},{"$f":"SUM(tblIšlaidųKategorija_12[sau])","v":0},{"$f":"SUM(tblIšlaidųKategorija_12[vas])","v":0},{"$f":"SUM(tblIšlaidųKategorija_12[kov])","v":0},{"$f":"SUM(tblIšlaidųKategorija_12[bal])","v":0},{"$f":"SUM(tblIšlaidųKategorija_12[geg])","v":0},{"$f":"SUM(tblIšlaidųKategorija_12[bir])","v":0},{"$f":"SUM(tblIšlaidųKategorija_12[liep])","v":0},{"$f":"SUM(tblIšlaidųKategorija_12[rugp])","v":0},{"$f":"SUM(tblIšlaidųKategorija_12[rugs])","v":0},{"$f":"SUM(tblIšlaidųKategorija_12[spal])","v":0},{"$f":"SUM(tblIšlaidųKategorija_12[lap])","v":0},{"$f":"SUM(tblIšlaidųKategorija_12[gruod])","v":0},{"$f":"SUM(tblIšlaidųKategorija_12[metai])","v":0},{"$f":"tblIšlaidųKategorija_12[[#Totals],[metai]]/12","v":0}]
[]
[]
[null," "]
[{"$nulls":14},{"$f":"SUM(tblIšlaidųKategorija_13[[#This Row],[sau]:[gruod]])","v":0},{"$f":"tblIšlaidųKategorija_13[[#This Row],[metai]]/12","v":0}]
[{"$nulls":14},{"$f":"SUM(tblIšlaidųKategorija_13[[#This Row],[sau]:[gruod]])","v":0},{"$f":"tblIšlaidųKategorija_13[[#This Row],[metai]]/12","v":0}]
[{"$nulls":14},{"$f":"SUM(tblIšlaidųKategorija_13[[#This Row],[sau]:[gruod]])","v":0},{"$f":"tblIšlaidųKategorija_13[[#This Row],[metai]]/12","v":0}]
[null,{"$f":"UPPER(\"Iš viso \" & B113)","v":"IŠ VISO  "},{"$f":"SUM(tblIšlaidųKategorija_13[sau])","v":0},{"$f":"SUM(tblIšlaidųKategorija_13[vas])","v":0},{"$f":"SUM(tblIšlaidųKategorija_13[kov])","v":0},{"$f":"SUM(tblIšlaidųKategorija_13[bal])","v":0},{"$f":"SUM(tblIšlaidųKategorija_13[geg])","v":0},{"$f":"SUM(tblIšlaidųKategorija_13[bir])","v":0},{"$f":"SUM(tblIšlaidųKategorija_13[liep])","v":0},{"$f":"SUM(tblIšlaidųKategorija_13[rugp])","v":0},{"$f":"SUM(tblIšlaidųKategorija_13[rugs])","v":0},{"$f":"SUM(tblIšlaidųKategorija_13[spal])","v":0},{"$f":"SUM(tblIšlaidųKategorija_13[lap])","v":0},{"$f":"SUM(tblIšlaidųKategorija_13[gruod])","v":0},{"$f":"SUM(tblIšlaidųKategorija_13[metai])","v":0},{"$f":"tblIšlaidųKategorija_13[[#Totals],[metai]]/12","v":0}]
[]
[]
[null," "]
[{"$nulls":14},{"$f":"SUM(tblIšlaidųKategorija_14[[#This Row],[sau]:[gruod]])","v":0},{"$f":"tblIšlaidųKategorija_14[[#This Row],[metai]]/12","v":0}]
[{"$nulls":14},{"$f":"SUM(tblIšlaidųKategorija_14[[#This Row],[sau]:[gruod]])","v":0},{"$f":"tblIšlaidųKategorija_14[[#This Row],[metai]]/12","v":0}]
[{"$nulls":14},{"$f":"SUM(tblIšlaidųKategorija_14[[#This Row],[sau]:[gruod]])","v":0},{"$f":"tblIšlaidųKategorija_14[[#This Row],[metai]]/12","v":0}]
[null,{"$f":"UPPER(\"Iš viso \" & B120)","v":"IŠ VISO  "},{"$f":"SUM(tblIšlaidųKategorija_14[sau])","v":0},{"$f":"SUM(tblIšlaidųKategorija_14[vas])","v":0},{"$f":"SUM(tblIšlaidųKategorija_14[kov])","v":0},{"$f":"SUM(tblIšlaidųKategorija_14[bal])","v":0},{"$f":"SUM(tblIšlaidųKategorija_14[geg])","v":0},{"$f":"SUM(tblIšlaidųKategorija_14[bir])","v":0},{"$f":"SUM(tblIšlaidųKategorija_14[liep])","v":0},{"$f":"SUM(tblIšlaidųKategorija_14[rugp])","v":0},{"$f":"SUM(tblIšlaidųKategorija_14[rugs])","v":0},{"$f":"SUM(tblIšlaidųKategorija_14[spal])","v":0},{"$f":"SUM(tblIšlaidųKategorija_14[lap])","v":0},{"$f":"SUM(tblIšlaidųKategorija_14[gruod])","v":0},{"$f":"SUM(tblIšlaidųKategorija_14[metai])","v":0},{"$f":"tblIšlaidųKategorija_14[[#Totals],[metai]]/12","v":0}]
[]
[]
[null," "]
[{"$nulls":14},{"$f":"SUM(tblIšlaidųKategorija_15[[#This Row],[sau]:[gruod]])","v":0},{"$f":"tblIšlaidųKategorija_15[[#This Row],[metai]]/12","v":0}]
[{"$nulls":14},{"$f":"SUM(tblIšlaidųKategorija_15[[#This Row],[sau]:[gruod]])","v":0},{"$f":"tblIšlaidųKategorija_15[[#This Row],[metai]]/12","v":0}]
[{"$nulls":14},{"$f":"SUM(tblIšlaidųKategorija_15[[#This Row],[sau]:[gruod]])","v":0},{"$f":"tblIšlaidųKategorija_15[[#This Row],[metai]]/12","v":0}]
[null,{"$f":"UPPER(\"Iš viso \" & B127)","v":"IŠ VISO  "},{"$f":"SUM(tblIšlaidųKategorija_15[sau])","v":0},{"$f":"SUM(tblIšlaidųKategorija_15[vas])","v":0},{"$f":"SUM(tblIšlaidųKategorija_15[kov])","v":0},{"$f":"SUM(tblIšlaidųKategorija_15[bal])","v":0},{"$f":"SUM(tblIšlaidųKategorija_15[geg])","v":0},{"$f":"SUM(tblIšlaidųKategorija_15[bir])","v":0},{"$f":"SUM(tblIšlaidųKategorija_15[liep])","v":0},{"$f":"SUM(tblIšlaidųKategorija_15[rugp])","v":0},{"$f":"SUM(tblIšlaidųKategorija_15[rugs])","v":0},{"$f":"SUM(tblIšlaidųKategorija_15[spal])","v":0},{"$f":"SUM(tblIšlaidųKategorija_15[lap])","v":0},{"$f":"SUM(tblIšlaidųKategorija_15[gruod])","v":0},{"$f":"SUM(tblIšlaidųKategorija_15[metai])","v":0},{"$f":"tblIšlaidųKategorija_15[[#Totals],[metai]]/12","v":0}]

{"sheet":"Sąranka","index":2,"n_rows":59,"n_cols":10,"rows_kept":59}
[null,"2012 M. JOHNSONŲ ŠEIMA"]
[null,"pajamos",null,"išlaidos"]
[null,"darbo užmokestis ir patarimai",null," "]
[null,"pajamos iš palūkanų",null,"namai",null,"namai",null,"kasdienės išlaidos",null,"vaikai"]
[null,"dividendai",null,"kasdienės išlaidos",null,"nekilnojamos turtas / nuoma",null,"bakalėja",null,"medicinos paslaugos"]
[null,"gautos dovanos",null,"vaikai",null,"elektros energija",null,"asmeninės priemonės",null,"drabužiai"]
[null,"susigrąžinti pinigai",null,"transportas",null,"dujos / degalai",null,"drabužiai",null,"mokestis iš mokslą"]
[null,"perkėlimas iš santaupų",null,"sveikata",null,"vanduo / kanalizacija / šiukšlės",null,"valymo tarnyba",null,"pietūs mokykloje"]
[null,"kita",null,"draudimas",null,"telefonas",null,"vakarienė / maistas ne namie",null,"mokyklos priemonės"]
[{"$nulls":3},"švietimas",null,"kabelinis / satelitinis ryšys",null,"sausas valymas",null,"vaiko priežiūros priemonės"]
[{"$nulls":3},"labdara",null,"internetas",null,"salonas / kirpykla",null,"žaislai / žaidimai"]
[{"$nulls":3},"santaupos",null,"baldai / įranga",null,"kita",null,"kita"]
[{"$nulls":3},"įsipareigojimai",null,"pieva / sodas"]
[{"$nulls":3},"pramogos",null,"namų įrengimai"]
[{"$nulls":3},"naminiai gyvūnai",null,"techninė priežiūra"]
[{"$nulls":3},"prenumerata",null,"patobulinimai"]
[{"$nulls":3},"atostogos",null,"kita"]
[{"$nulls":3},"įvairios"]
[]
[{"$nulls":5},"transportas",null,"sveikata",null,"draudimas"]
[{"$nulls":5},"mokestis už transporto priemonę",null,"daktaras / dantistas",null,"automobilis"]
[{"$nulls":5},"degalai",null,"medikamentai / vaistai",null,"sveikata"]
[{"$nulls":5},"mokestis už autobusą / taksi / traukinį",null,"sveikatos klubo mokesčiai",null,"namai / nuoma"]
[{"$nulls":5},"remontas",null,"nelaimingi atsitikimai",null,"eksploatacijos_laikas"]
[{"$nulls":5},"registracija / licencija",null,"kita",null,"kita"]
[{"$nulls":5},"kita"]
[]
[]
[{"$nulls":5},"švietimas",null,"labdara",null,"santaupos"]
[{"$nulls":5},"mokestis už mokslą",null,"įteiktos dovanos",null,"nelaimingų atsitikimų fondas"]
[{"$nulls":5},"knygos",null,"aukos labdarai",null,"perkėlimas į santaupas"]
[{"$nulls":5},"muzikos pamokos",null,"religinės aukos",null,"pensijų fondas (401k, IRA)"]
[{"$nulls":5},"kita",null,"kita",null,"investicijos"]
[{"$nulls":9},"koledžas"]
[{"$nulls":9},"kita"]
[]
[]
[{"$nulls":5},"įsipareigojimai",null,"pramogos",null,"naminiai gyvūnai"]
[{"$nulls":5},"studentų paskola",null,"vaizdo įrašai / DVD",null,"maistas"]
[{"$nulls":5},"kitos paskolos",null,"muzikos įrašai",null,"medicinos paslaugos"]
[{"$nulls":5},"kredito kortelė Nr. 1",null,"žaidimai",null,"žaislai / priemonės"]
[{"$nulls":5},"kredito kortelė Nr. 2",null,"nuomojamos priemonės",null,"kita"]
[{"$nulls":5},"kredito kortelė Nr. 3",null,"kinas / teatras"]
[{"$nulls":5},"alimentai / vaikų išlaikymas",null,"koncertai / pjesės"]
[{"$nulls":5},"valstybiniai mokesčiai",null,"knygos"]
[{"$nulls":5},"nuosavybės mokestis",null,"pomėgiai"]
[{"$nulls":5},"valstybiniai / vietiniai mokesčiai",null,"filmas / nuotraukos"]
[{"$nulls":5},"namų savininkų asociacijos mokesčiai",null,"sportas"]
[{"$nulls":5},"teisiniai mokesčiai",null,"poilsis ne namie"]
[{"$nulls":5},"kita",null,"žaislai / menkniekiai"]
[{"$nulls":7},"kita"]
[]
[{"$nulls":5},"prenumerata",null,"atostogos",null,"įvairios"]
[{"$nulls":5},"laikraščiai",null,"kelionės",null,"banko mokesčiai"]
[{"$nulls":5},"žurnalai",null,"laikina pastogė",null,"pašto išlaidos"]
[{"$nulls":5},"rinkliavos",null,"maistas",null,"kita"]
[{"$nulls":5},"narystė klube",null,"mašinos nuoma"]
[{"$nulls":5},"kita",null,"pramogos"]
[{"$nulls":7},"kita"]

{"sheet":"diagramos duomenys","index":3,"n_rows":40,"n_cols":16,"rows_kept":40,"hidden":true}
[null,"*** Šis puslapis turi būti paslėptas ***"]
[]
[]
[null,"Laikotarpis",3]
[]
[null,null,"sau","vas","kov","bal","geg","bir","liep","rugp","rugs","spal","lap","gruod","metai","Vid."]
[null,{"$f":"LOWER(Biudžetas!B127)","v":" "},{"$f":"SUM(tblIšlaidųKategorija_15[sau])","v":0},{"$f":"SUM(tblIšlaidųKategorija_15[vas])","v":0},{"$f":"SUM(tblIšlaidųKategorija_15[kov])","v":0},{"$f":"SUM(tblIšlaidųKategorija_15[bal])","v":0},{"$f":"SUM(tblIšlaidųKategorija_15[geg])","v":0},{"$f":"SUM(tblIšlaidųKategorija_15[bir])","v":0},{"$f":"SUM(tblIšlaidųKategorija_15[liep])","v":0},{"$f":"SUM(tblIšlaidųKategorija_15[rugp])","v":0},{"$f":"SUM(tblIšlaidųKategorija_15[rugs])","v":0},{"$f":"SUM(tblIšlaidųKategorija_15[spal])","v":0},{"$f":"SUM(tblIšlaidųKategorija_15[lap])","v":0},{"$f":"SUM(tblIšlaidųKategorija_15[gruod])","v":0},{"$f":"SUM(tblIšlaidųKategorija_15[metai])","v":0},{"$f":"SUM(tblIšlaidųKategorija_15[vid])","v":0}]
[null,{"$f":"LOWER(Biudžetas!B120)","v":" "},{"$f":"SUM(tblIšlaidųKategorija_14[sau])","v":0},{"$f":"SUM(tblIšlaidųKategorija_14[vas])","v":0},{"$f":"SUM(tblIšlaidųKategorija_14[kov])","v":0},{"$f":"SUM(tblIšlaidųKategorija_14[bal])","v":0},{"$f":"SUM(tblIšlaidųKategorija_14[geg])","v":0},{"$f":"SUM(tblIšlaidųKategorija_14[bir])","v":0},{"$f":"SUM(tblIšlaidųKategorija_14[liep])","v":0},{"$f":"SUM(tblIšlaidųKategorija_14[rugp])","v":0},{"$f":"SUM(tblIšlaidųKategorija_14[rugs])","v":0},{"$f":"SUM(tblIšlaidųKategorija_14[spal])","v":0},{"$f":"SUM(tblIšlaidųKategorija_14[lap])","v":0},{"$f":"SUM(tblIšlaidųKategorija_14[gruod])","v":0},{"$f":"SUM(tblIšlaidųKategorija_14[metai])","v":0},{"$f":"SUM(tblIšlaidųKategorija_14[vid])","v":0}]
[null,{"$f":"LOWER(Biudžetas!B113)","v":" "},{"$f":"SUM(tblIšlaidųKategorija_13[sau])","v":0},{"$f":"SUM(tblIšlaidųKategorija_13[vas])","v":0},{"$f":"SUM(tblIšlaidųKategorija_13[kov])","v":0},{"$f":"SUM(tblIšlaidųKategorija_13[bal])","v":0},{"$f":"SUM(tblIšlaidųKategorija_13[geg])","v":0},{"$f":"SUM(tblIšlaidųKategorija_13[bir])","v":0},{"$f":"SUM(tblIšlaidųKategorija_13[liep])","v":0},{"$f":"SUM(tblIšlaidųKategorija_13[rugp])","v":0},{"$f":"SUM(tblIšlaidųKategorija_13[rugs])","v":0},{"$f":"SUM(tblIšlaidųKategorija_13[spal])","v":0},{"$f":"SUM(tblIšlaidųKategorija_13[lap])","v":0},{"$f":"SUM(tblIšlaidųKategorija_13[gruod])","v":0},{"$f":"SUM(tblIšlaidųKategorija_13[metai])","v":0},{"$f":"SUM(tblIšlaidųKategorija_13[vid])","v":0}]
[null,{"$f":"LOWER(Biudžetas!B106)","v":" "},{"$f":"SUM(tblIšlaidųKategorija_12[sau])","v":0},{"$f":"SUM(tblIšlaidųKategorija_12[vas])","v":0},{"$f":"SUM(tblIšlaidųKategorija_12[kov])","v":0},{"$f":"SUM(tblIšlaidųKategorija_12[bal])","v":0},{"$f":"SUM(tblIšlaidųKategorija_12[geg])","v":0},{"$f":"SUM(tblIšlaidųKategorija_12[bir])","v":0},{"$f":"SUM(tblIšlaidųKategorija_12[liep])","v":0},{"$f":"SUM(tblIšlaidųKategorija_12[rugp])","v":0},{"$f":"SUM(tblIšlaidųKategorija_12[rugs])","v":0},{"$f":"SUM(tblIšlaidųKategorija_12[spal])","v":0},{"$f":"SUM(tblIšlaidųKategorija_12[lap])","v":0},{"$f":"SUM(tblIšlaidųKategorija_12[gruod])","v":0},{"$f":"SUM(tblIšlaidųKategorija_12[metai])","v":0},{"$f":"SUM(tblIšlaidųKategorija_12[vid])","v":0}]
[null,{"$f":"LOWER(Biudžetas!B99)","v":" "},{"$f":"SUM(tblIšlaidųKategorija_11[sau])","v":0},{"$f":"SUM(tblIšlaidųKategorija_11[vas])","v":0},{"$f":"SUM(tblIšlaidųKategorija_11[kov])","v":0},{"$f":"SUM(tblIšlaidųKategorija_11[bal])","v":0},{"$f":"SUM(tblIšlaidųKategorija_11[geg])","v":0},{"$f":"SUM(tblIšlaidųKategorija_11[bir])","v":0},{"$f":"SUM(tblIšlaidųKategorija_11[liep])","v":0},{"$f":"SUM(tblIšlaidųKategorija_11[rugp])","v":0},{"$f":"SUM(tblIšlaidųKategorija_11[rugs])","v":0},{"$f":"SUM(tblIšlaidųKategorija_11[spal])","v":0},{"$f":"SUM(tblIšlaidųKategorija_11[lap])","v":0},{"$f":"SUM(tblIšlaidųKategorija_11[gruod])","v":0},{"$f":"SUM(tblIšlaidųKategorija_11[metai])","v":0},{"$f":"SUM(tblIšlaidųKategorija_11[vid])","v":0}]
[null,{"$f":"LOWER(Biudžetas!B92)","v":"įsipareigojimai"},{"$f":"SUM(tblIšlaidųKategorija_10[sau])","v":650},{"$f":"SUM(tblIšlaidųKategorija_10[vas])","v":200},{"$f":"SUM(tblIšlaidųKategorija_10[kov])","v":200},{"$f":"SUM(tblIšlaidųKategorija_10[bal])","v":650},{"$f":"SUM(tblIšlaidųKategorija_10[geg])","v":200},{"$f":"SUM(tblIšlaidųKategorija_10[bir])","v":200},{"$f":"SUM(tblIšlaidųKategorija_10[liep])","v":650},{"$f":"SUM(tblIšlaidųKategorija_10[rugp])","v":200},{"$f":"SUM(tblIšlaidųKategorija_10[rugs])","v":200},{"$f":"SUM(tblIšlaidųKategorija_10[spal])","v":650},{"$f":"SUM(tblIšlaidųKategorija_10[lap])","v":200},{"$f":"SUM(tblIšlaidųKategorija_10[gruod])","v":200},{"$f":"SUM(tblIšlaidųKategorija_10[metai])","v":{"v":4200,"d":"4,200"}},{"$f":"SUM(tblIšlaidųKategorija_10[vid])","v":350}]
[null,{"$f":"LOWER(Biudžetas!B85)","v":"santaupos"},{"$f":"SUM(tblIšlaidųKategorija_09[sau])","v":800},{"$f":"SUM(tblIšlaidųKategorija_09[vas])","v":800},{"$f":"SUM(tblIšlaidųKategorija_09[kov])","v":800},{"$f":"SUM(tblIšlaidųKategorija_09[bal])","v":800},{"$f":"SUM(tblIšlaidųKategorija_09[geg])","v":800},{"$f":"SUM(tblIšlaidųKategorija_09[bir])","v":500},{"$f":"SUM(tblIšlaidųKategorija_09[liep])","v":500},{"$f":"SUM(tblIšlaidųKategorija_09[rugp])","v":500},{"$f":"SUM(tblIšlaidųKategorija_09[rugs])","v":800},{"$f":"SUM(tblIšlaidųKategorija_09[spal])","v":800},{"$f":"SUM(tblIšlaidųKategorija_09[lap])","v":800},{"$f":"SUM(tblIšlaidųKategorija_09[gruod])","v":800},{"$f":"SUM(tblIšlaidųKategorija_09[metai])","v":{"v":8700,"d":"8,700"}},{"$f":"SUM(tblIšlaidųKategorija_09[vid])","v":725}]
[null,{"$f":"LOWER(Biudžetas!B78)","v":"labdara"},{"$f":"SUM(tblIšlaidųKategorija_08[sau])","v":0},{"$f":"SUM(tblIšlaidųKategorija_08[vas])","v":100},{"$f":"SUM(tblIšlaidųKategorija_08[kov])","v":100},{"$f":"SUM(tblIšlaidųKategorija_08[bal])","v":100},{"$f":"SUM(tblIšlaidųKategorija_08[geg])","v":100},{"$f":"SUM(tblIšlaidųKategorija_08[bir])","v":100},{"$f":"SUM(tblIšlaidųKategorija_08[liep])","v":100},{"$f":"SUM(tblIšlaidųKategorija_08[rugp])","v":100},{"$f":"SUM(tblIšlaidųKategorija_08[rugs])","v":100},{"$f":"SUM(tblIšlaidųKategorija_08[spal])","v":100},{"$f":"SUM(tblIšlaidųKategorija_08[lap])","v":100},{"$f":"SUM(tblIšlaidųKategorija_08[gruod])","v":100},{"$f":"SUM(tblIšlaidųKategorija_08[metai])","v":{"v":1100,"d":"1,100"}},{"$f":"SUM(tblIšlaidųKategorija_08[vid])","v":{"v":91.66666666666666,"d":"92"}}]
[null,{"$f":"LOWER(Biudžetas!B71)","v":"švietimas"},{"$f":"SUM(tblIšlaidųKategorija_07[sau])","v":0},{"$f":"SUM(tblIšlaidųKategorija_07[vas])","v":0},{"$f":"SUM(tblIšlaidųKategorija_07[kov])","v":625},{"$f":"SUM(tblIšlaidųKategorija_07[bal])","v":0},{"$f":"SUM(tblIšlaidųKategorija_07[geg])","v":0},{"$f":"SUM(tblIšlaidųKategorija_07[bir])","v":0},{"$f":"SUM(tblIšlaidųKategorija_07[liep])","v":0},{"$f":"SUM(tblIšlaidųKategorija_07[rugp])","v":0},{"$f":"SUM(tblIšlaidųKategorija_07[rugs])","v":625},{"$f":"SUM(tblIšlaidųKategorija_07[spal])","v":0},{"$f":"SUM(tblIšlaidųKategorija_07[lap])","v":0},{"$f":"SUM(tblIšlaidųKategorija_07[gruod])","v":0},{"$f":"SUM(tblIšlaidųKategorija_07[metai])","v":{"v":1250,"d":"1,250"}},{"$f":"SUM(tblIšlaidųKategorija_07[vid])","v":{"v":104.16666666666667,"d":"104"}}]
[null,{"$f":"LOWER(Biudžetas!B64)","v":"draudimas"},{"$f":"SUM(tblIšlaidųKategorija_06[sau])","v":975},{"$f":"SUM(tblIšlaidųKategorija_06[vas])","v":975},{"$f":"SUM(tblIšlaidųKategorija_06[kov])","v":975},{"$f":"SUM(tblIšlaidųKategorija_06[bal])","v":975},{"$f":"SUM(tblIšlaidųKategorija_06[geg])","v":975},{"$f":"SUM(tblIšlaidųKategorija_06[bir])","v":975},{"$f":"SUM(tblIšlaidųKategorija_06[liep])","v":975},{"$f":"SUM(tblIšlaidųKategorija_06[rugp])","v":975},{"$f":"SUM(tblIšlaidųKategorija_06[rugs])","v":975},{"$f":"SUM(tblIšlaidųKategorija_06[spal])","v":975},{"$f":"SUM(tblIšlaidųKategorija_06[lap])","v":975},{"$f":"SUM(tblIšlaidųKategorija_06[gruod])","v":975},{"$f":"SUM(tblIšlaidųKategorija_06[metai])","v":{"v":11700,"d":"11,700"}},{"$f":"SUM(tblIšlaidųKategorija_06[vid])","v":975}]
[null,{"$f":"LOWER(Biudžetas!B57)","v":"sveikata"},{"$f":"SUM(tblIšlaidųKategorija_05[sau])","v":25},{"$f":"SUM(tblIšlaidųKategorija_05[vas])","v":60},{"$f":"SUM(tblIšlaidųKategorija_05[kov])","v":175},{"$f":"SUM(tblIšlaidųKategorija_05[bal])","v":25},{"$f":"SUM(tblIšlaidųKategorija_05[geg])","v":60},{"$f":"SUM(tblIšlaidųKategorija_05[bir])","v":60},{"$f":"SUM(tblIšlaidųKategorija_05[liep])","v":60},{"$f":"SUM(tblIšlaidųKategorija_05[rugp])","v":25},{"$f":"SUM(tblIšlaidųKategorija_05[rugs])","v":175},{"$f":"SUM(tblIšlaidųKategorija_05[spal])","v":60},{"$f":"SUM(tblIšlaidųKategorija_05[lap])","v":25},{"$f":"SUM(tblIšlaidųKategorija_05[gruod])","v":25},{"$f":"SUM(tblIšlaidųKategorija_05[metai])","v":775},{"$f":"SUM(tblIšlaidųKategorija_05[vid])","v":{"v":64.58333333333334,"d":"65"}}]
[null,{"$f":"LOWER(Biudžetas!B48)","v":"transportas"},{"$f":"SUM(tblIšlaidųKategorija_04[sau])","v":{"v":1110,"d":"1,110"}},{"$f":"SUM(tblIšlaidųKategorija_04[vas])","v":{"v":1025,"d":"1,025"}},{"$f":"SUM(tblIšlaidųKategorija_04[kov])","v":925},{"$f":"SUM(tblIšlaidųKategorija_04[bal])","v":{"v":1025,"d":"1,025"}},{"$f":"SUM(tblIšlaidųKategorija_04[geg])","v":{"v":1325,"d":"1,325"}},{"$f":"SUM(tblIšlaidųKategorija_04[bir])","v":{"v":1200,"d":"1,200"}},{"$f":"SUM(tblIšlaidųKategorija_04[liep])","v":{"v":1100,"d":"1,100"}},{"$f":"SUM(tblIšlaidųKategorija_04[rugp])","v":{"v":1200,"d":"1,200"}},{"$f":"SUM(tblIšlaidųKategorija_04[rugs])","v":{"v":1150,"d":"1,150"}},{"$f":"SUM(tblIšlaidųKategorija_04[spal])","v":{"v":1025,"d":"1,025"}},{"$f":"SUM(tblIšlaidųKategorija_04[lap])","v":925},{"$f":"SUM(tblIšlaidųKategorija_04[gruod])","v":925},{"$f":"SUM(tblIšlaidųKategorija_04[metai])","v":{"v":12935,"d":"12,935"}},{"$f":"SUM(tblIšlaidųKategorija_04[vid])","v":{"v":1077.9166666666665,"d":"1,078"}}]
[null,{"$f":"LOWER(Biudžetas!B39)","v":"vaikai"},{"$f":"SUM(tblIšlaidųKategorija_03[sau])","v":{"v":2373,"d":"2,373"}},{"$f":"SUM(tblIšlaidųKategorija_03[vas])","v":500},{"$f":"SUM(tblIšlaidųKategorija_03[kov])","v":350},{"$f":"SUM(tblIšlaidųKategorija_03[bal])","v":250},{"$f":"SUM(tblIšlaidųKategorija_03[geg])","v":350},{"$f":"SUM(tblIšlaidųKategorija_03[bir])","v":450},{"$f":"SUM(tblIšlaidųKategorija_03[liep])","v":200},{"$f":"SUM(tblIšlaidųKategorija_03[rugp])","v":545},{"$f":"SUM(tblIšlaidųKategorija_03[rugs])","v":350},{"$f":"SUM(tblIšlaidųKategorija_03[spal])","v":350},{"$f":"SUM(tblIšlaidųKategorija_03[lap])","v":250},{"$f":"SUM(tblIšlaidųKategorija_03[gruod])","v":350},{"$f":"SUM(tblIšlaidųKategorija_03[metai])","v":{"v":6318,"d":"6,318"}},{"$f":"SUM(tblIšlaidųKategorija_03[vid])","v":{"v":526.5,"d":"527"}}]
[null,{"$f":"LOWER(Biudžetas!B30)","v":"kasdienės išlaidos"},{"$f":"SUM(tblIšlaidųKategorija_02[sau])","v":795},{"$f":"SUM(tblIšlaidųKategorija_02[vas])","v":375},{"$f":"SUM(tblIšlaidųKategorija_02[kov])","v":550},{"$f":"SUM(tblIšlaidųKategorija_02[bal])","v":825},{"$f":"SUM(tblIšlaidųKategorija_02[geg])","v":500},{"$f":"SUM(tblIšlaidųKategorija_02[bir])","v":450},{"$f":"SUM(tblIšlaidųKategorija_02[liep])","v":875},{"$f":"SUM(tblIšlaidųKategorija_02[rugp])","v":475},{"$f":"SUM(tblIšlaidųKategorija_02[rugs])","v":400},{"$f":"SUM(tblIšlaidųKategorija_02[spal])","v":825},{"$f":"SUM(tblIšlaidųKategorija_02[lap])","v":575},{"$f":"SUM(tblIšlaidųKategorija_02[gruod])","v":375},{"$f":"SUM(tblIšlaidųKategorija_02[metai])","v":{"v":7020,"d":"7,020"}},{"$f":"SUM(tblIšlaidųKategorija_02[vid])","v":585}]
[null,{"$f":"LOWER(Biudžetas!B21)","v":"namai"},{"$f":"SUM(tblIšlaidųKategorija_01[sau])","v":{"v":1208,"d":"1,208"}},{"$f":"SUM(tblIšlaidųKategorija_01[vas])","v":{"v":1208,"d":"1,208"}},{"$f":"SUM(tblIšlaidųKategorija_01[kov])","v":{"v":1233,"d":"1,233"}},{"$f":"SUM(tblIšlaidųKategorija_01[bal])","v":{"v":1208,"d":"1,208"}},{"$f":"SUM(tblIšlaidųKategorija_01[geg])","v":{"v":1158,"d":"1,158"}},{"$f":"SUM(tblIšlaidųKategorija_01[bir])","v":{"v":1183,"d":"1,183"}},{"$f":"SUM(tblIšlaidųKategorija_01[liep])","v":{"v":1283,"d":"1,283"}},{"$f":"SUM(tblIšlaidųKategorija_01[rugp])","v":{"v":1333,"d":"1,333"}},{"$f":"SUM(tblIšlaidųKategorija_01[rugs])","v":{"v":1208,"d":"1,208"}},{"$f":"SUM(tblIšlaidųKategorija_01[spal])","v":{"v":1158,"d":"1,158"}},{"$f":"SUM(tblIšlaidųKategorija_01[lap])","v":{"v":1208,"d":"1,208"}},{"$f":"SUM(tblIšlaidųKategorija_01[gruod])","v":{"v":1208,"d":"1,208"}},{"$f":"SUM(tblIšlaidųKategorija_01[metai])","v":{"v":14596,"d":"14,596"}},{"$f":"SUM(tblIšlaidųKategorija_01[vid])","v":{"v":1216.3333333333335,"d":"1,216"}}]
[]
[]
[]
[]
[null,"Kaupiamasis grynųjų pinigų srautas",{"$f":"SUM(Biudžetas!$C$8:C$8)","v":{"v":-3714,"d":"-3,714"}},{"$f":"SUM(Biudžetas!$C$8:D$8)","v":76},{"$f":"SUM(Biudžetas!$C$8:E$8)","v":{"v":-1857,"d":"-1,857"}},{"$f":"SUM(Biudžetas!$C$8:F$8)","v":{"v":-3670,"d":"-3,670"}},{"$f":"SUM(Biudžetas!$C$8:G$8)","v":-138},{"$f":"SUM(Biudžetas!$C$8:H$8)","v":{"v":-3731,"d":"-3,731"}},{"$f":"SUM(Biudžetas!$C$8:I$8)","v":{"v":-7974,"d":"-7,974"}},{"$f":"SUM(Biudžetas!$C$8:J$8)","v":{"v":-6827,"d":"-6,827"}},{"$f":"SUM(Biudžetas!$C$8:K$8)","v":{"v":-8810,"d":"-8,810"}},{"$f":"SUM(Biudžetas!$C$8:L$8)","v":{"v":-10753,"d":"-10,753"}},{"$f":"SUM(Biudžetas!$C$8:M$8)","v":{"v":-6811,"d":"-6,811"}},{"$f":"SUM(Biudžetas!$C$8:N$8)","v":{"v":-7769,"d":"-7,769"}},{"$f":"SUM(Biudžetas!$C$8:O$8)","v":{"v":-15538,"d":"-15,538"}}]
[]
[null,"Teigiami metiniai grynųjų pinigų srautai",{"$f":"IF(Biudžetas!C$8<0,NA(),IF(Laikotarpis+2<>COLUMN(Biudžetas!C$8),NA(),Biudžetas!C$8))","v":{"$error":"#N/A"}},{"$f":"IF(Biudžetas!D$8<0,NA(),IF(Laikotarpis+2<>COLUMN(Biudžetas!D$8),NA(),Biudžetas!D$8))","v":{"$error":"#N/A"}},{"$f":"IF(Biudžetas!E$8<0,NA(),IF(Laikotarpis+2<>COLUMN(Biudžetas!E$8),NA(),Biudžetas!E$8))","v":{"$error":"#N/A"}},{"$f":"IF(Biudžetas!F$8<0,NA(),IF(Laikotarpis+2<>COLUMN(Biudžetas!F$8),NA(),Biudžetas!F$8))","v":{"$error":"#N/A"}},{"$f":"IF(Biudžetas!G$8<0,NA(),IF(Laikotarpis+2<>COLUMN(Biudžetas!G$8),NA(),Biudžetas!G$8))","v":{"$error":"#N/A"}},{"$f":"IF(Biudžetas!H$8<0,NA(),IF(Laikotarpis+2<>COLUMN(Biudžetas!H$8),NA(),Biudžetas!H$8))","v":{"$error":"#N/A"}},{"$f":"IF(Biudžetas!I$8<0,NA(),IF(Laikotarpis+2<>COLUMN(Biudžetas!I$8),NA(),Biudžetas!I$8))","v":{"$error":"#N/A"}},{"$f":"IF(Biudžetas!J$8<0,NA(),IF(Laikotarpis+2<>COLUMN(Biudžetas!J$8),NA(),Biudžetas!J$8))","v":{"$error":"#N/A"}},{"$f":"IF(Biudžetas!K$8<0,NA(),IF(Laikotarpis+2<>COLUMN(Biudžetas!K$8),NA(),Biudžetas!K$8))","v":{"$error":"#N/A"}},{"$f":"IF(Biudžetas!L$8<0,NA(),IF(Laikotarpis+2<>COLUMN(Biudžetas!L$8),NA(),Biudžetas!L$8))","v":{"$error":"#N/A"}},{"$f":"IF(Biudžetas!M$8<0,NA(),IF(Laikotarpis+2<>COLUMN(Biudžetas!M$8),NA(),Biudžetas!M$8))","v":{"$error":"#N/A"}},{"$f":"IF(Biudžetas!N$8<0,NA(),IF(Laikotarpis+2<>COLUMN(Biudžetas!N$8),NA(),Biudžetas!N$8))","v":{"$error":"#N/A"}},{"$f":"IF(Biudžetas!O$8<0,NA(),IF(Laikotarpis+2<>COLUMN(Biudžetas!O$8),NA(),Biudžetas!O$8))","v":{"$error":"#N/A"}}]
[null,"Neigiami metiniai grynųjų pinigų srautai",{"$f":"IF(Biudžetas!C$8>=0,NA(),IF(Laikotarpis+2<>COLUMN(Biudžetas!C$8),NA(),Biudžetas!C$8))","v":{"$error":"#N/A"}},{"$f":"IF(Biudžetas!D$8>=0,NA(),IF(Laikotarpis+2<>COLUMN(Biudžetas!D$8),NA(),Biudžetas!D$8))","v":{"$error":"#N/A"}},{"$f":"IF(Biudžetas!E$8>=0,NA(),IF(Laikotarpis+2<>COLUMN(Biudžetas!E$8),NA(),Biudžetas!E$8))","v":{"v":-1933,"d":"-1,933"}},{"$f":"IF(Biudžetas!F$8>=0,NA(),IF(Laikotarpis+2<>COLUMN(Biudžetas!F$8),NA(),Biudžetas!F$8))","v":{"$error":"#N/A"}},{"$f":"IF(Biudžetas!G$8>=0,NA(),IF(Laikotarpis+2<>COLUMN(Biudžetas!G$8),NA(),Biudžetas!G$8))","v":{"$error":"#N/A"}},{"$f":"IF(Biudžetas!H$8>=0,NA(),IF(Laikotarpis+2<>COLUMN(Biudžetas!H$8),NA(),Biudžetas!H$8))","v":{"$error":"#N/A"}},{"$f":"IF(Biudžetas!I$8>=0,NA(),IF(Laikotarpis+2<>COLUMN(Biudžetas!I$8),NA(),Biudžetas!I$8))","v":{"$error":"#N/A"}},{"$f":"IF(Biudžetas!J$8>=0,NA(),IF(Laikotarpis+2<>COLUMN(Biudžetas!J$8),NA(),Biudžetas!J$8))","v":{"$error":"#N/A"}},{"$f":"IF(Biudžetas!K$8>=0,NA(),IF(Laikotarpis+2<>COLUMN(Biudžetas!K$8),NA(),Biudžetas!K$8))","v":{"$error":"#N/A"}},{"$f":"IF(Biudžetas!L$8>=0,NA(),IF(Laikotarpis+2<>COLUMN(Biudžetas!L$8),NA(),Biudžetas!L$8))","v":{"$error":"#N/A"}},{"$f":"IF(Biudžetas!M$8>=0,NA(),IF(Laikotarpis+2<>COLUMN(Biudžetas!M$8),NA(),Biudžetas!M$8))","v":{"$error":"#N/A"}},{"$f":"IF(Biudžetas!N$8>=0,NA(),IF(Laikotarpis+2<>COLUMN(Biudžetas!N$8),NA(),Biudžetas!N$8))","v":{"$error":"#N/A"}},{"$f":"IF(Biudžetas!O$8>=0,NA(),IF(Laikotarpis+2<>COLUMN(Biudžetas!O$8),NA(),Biudžetas!O$8))","v":{"$error":"#N/A"}}]
{"$rows_empty":7}
[null,{"$f":"LOWER(rodyti_ilgą_laikotarpį)","v":"kovas"}]
[null,{"$f":"rodyti_ilgą_laikotarpį & \" mėnesio pajamos\"","v":"kovas mėnesio pajamos"},{"$f":"INDEX(Biudžetas!$C$6:$P$6,,Laikotarpis)","v":{"v":4000,"d":"4,000 Lt"}}]
[null,{"$f":"rodyti_ilgą_laikotarpį & \" mėnesio išlaidos: Lt \" & TEXT(INDEX(Biudžetas!$C$7:$P$7,,Laikotarpis),\"#.##0\")","v":"kovas mėnesio išlaidos: Lt 5.933"},{"$f":"INDEX(Biudžetas!$C$7:$P$7,,Laikotarpis)","v":{"v":5933,"d":"5,933 Lt"}}]
[null,{"$f":"rodyti_ilgą_laikotarpį & \" mėnesio grynųjų pinigų srautas\"","v":"kovas mėnesio grynųjų pinigų srautas"},{"$f":"ABS(INDEX(Biudžetas!$C$8:$P$8,,Laikotarpis))","v":{"v":1933,"d":"1,933 Lt"}},{"$f":"REPT(\"-\",INDEX(Biudžetas!$C$8:$P$8,,Laikotarpis)<0)","v":"-"}]